[Event "Late-Titled-Tuesday-Blitz-March-26-2024"]
[Site "Chess.com"]
[Date "2024.03.26"]
[Round "3"]
[White "1mbl4"]
[Black "stollenmonster"]
[Result "1-0"]
[WhiteElo "2620"]
[BlackElo "2864"]
[TimeControl "180+1"]
[EndTime "14:27:39 PDT"]
[Termination "1mbl4 won by resignation"]

1. b3 {[%clk 0:03:00.9]} 1... Nf6 {[%clk 0:02:59.6]} 2. Bb2 {[%clk 0:03:01]}
2... e6 {[%clk 0:03:00.5]} 3. e3 {[%clk 0:02:57.9]} 3... d5 {[%clk 0:03:00.9]}
4. Nf3 {[%clk 0:02:58.4]} 4... Be7 {[%clk 0:03:01.4]} 5. d4 {[%clk 0:02:58.1]}
5... O-O {[%clk 0:03:01.9]} 6. Bd3 {[%clk 0:02:58.3]} 6... Ne4 {[%clk
0:03:02.5]} 7. a3 {[%clk 0:02:47.7]} 7... f5 {[%clk 0:03:02.6]} 8. Nbd2 {[%clk
0:02:46.5]} 8... c6 {[%clk 0:03:03.2]} 9. c4 {[%clk 0:02:45.7]} 9... Bd7 {[%clk
0:03:03.3]} 10. Ne5 {[%clk 0:02:40.5]} 10... Be8 {[%clk 0:03:03.7]} 11. O-O
{[%clk 0:02:39.3]} 11... Nd7 {[%clk 0:03:02.2]} 12. Nxd7 {[%clk 0:02:32.1]}
12... Qxd7 {[%clk 0:03:03.1]} 13. f3 {[%clk 0:02:31.9]} 13... Nxd2 {[%clk
0:03:02.5]} 14. Qxd2 {[%clk 0:02:31.9]} 14... g5 {[%clk 0:02:59.4]} 15. e4
{[%clk 0:02:22.9]} 15... dxe4 {[%clk 0:02:57.7]} 16. fxe4 {[%clk 0:02:22.7]}
16... Bg6 {[%clk 0:02:55]} 17. exf5 {[%clk 0:02:16.4]} 17... exf5 {[%clk
0:02:55.2]} 18. Rae1 {[%clk 0:02:00.1]} 18... Rae8 {[%clk 0:02:43.2]} 19. d5
{[%clk 0:01:36]} 19... cxd5 {[%clk 0:02:20]} 20. cxd5 {[%clk 0:01:35.3]} 20...
Bc5+ {[%clk 0:01:22.1]} 21. Kh1 {[%clk 0:01:34.5]} 21... Rxe1 {[%clk 0:01:22.5]}
22. Rxe1 {[%clk 0:01:31.9]} 22... Re8 {[%clk 0:01:22.8]} 23. Rxe8+ {[%clk
0:01:15]} 23... Qxe8 {[%clk 0:01:07.4]} 24. Qc3 {[%clk 0:01:14.8]} 24... Qe7
{[%clk 0:01:06.2]} 25. d6 {[%clk 0:01:05.8]} 25... Bxd6 {[%clk 0:01:01.7]} 26.
Bc4+ {[%clk 0:01:04.6]} 1-0

[Event "Late-Titled-Tuesday-Blitz-March-26-2024"]
[Site "Chess.com"]
[Date "2024.03.26"]
[Round "3"]
[White "Rikikits"]
[Black "Hikaru"]
[Result "0-1"]
[WhiteElo "2845"]
[BlackElo "3277"]
[TimeControl "180+1"]
[EndTime "14:27:46 PDT"]
[Termination "Hikaru won by resignation"]

1. d4 {[%clk 0:03:00.9]} 1... a6 {[%clk 0:02:57.6]} 2. e4 {[%clk 0:03:00.4]}
2... c6 {[%clk 0:02:57.8]} 3. Bd3 {[%clk 0:02:58.3]} 3... d5 {[%clk 0:02:56.9]}
4. e5 {[%clk 0:02:54.8]} 4... c5 {[%clk 0:02:57.2]} 5. c3 {[%clk 0:02:54.3]}
5... Nc6 {[%clk 0:02:50.8]} 6. Ne2 {[%clk 0:02:52.2]} 6... cxd4 {[%clk
0:02:50.4]} 7. cxd4 {[%clk 0:02:53.1]} 7... Bg4 {[%clk 0:02:50.6]} 8. Nbc3
{[%clk 0:02:48.2]} 8... e6 {[%clk 0:02:50.7]} 9. Be3 {[%clk 0:02:44]} 9... Nge7
{[%clk 0:02:37.2]} 10. h3 {[%clk 0:02:40.3]} 10... Bf5 {[%clk 0:02:37]} 11. g4
{[%clk 0:02:37]} 11... Bxd3 {[%clk 0:02:37.2]} 12. Qxd3 {[%clk 0:02:37.9]} 12...
h5 {[%clk 0:02:36.1]} 13. O-O-O {[%clk 0:02:34.3]} 13... Rc8 {[%clk 0:02:35.7]}
14. Kb1 {[%clk 0:02:34.3]} 14... Na5 {[%clk 0:02:33.2]} 15. Ka1 {[%clk
0:02:09.3]} 15... Nec6 {[%clk 0:02:27.1]} 16. Nf4 {[%clk 0:02:06.2]} 16... hxg4
{[%clk 0:01:43.8]} 17. hxg4 {[%clk 0:02:07.1]} 17... Rxh1 {[%clk 0:01:43.3]} 18.
Rxh1 {[%clk 0:02:07.8]} 18... Nb4 {[%clk 0:01:36.9]} 19. Qe2 {[%clk 0:02:05.2]}
19... Nc4 {[%clk 0:01:36.7]} 20. Rh8 {[%clk 0:01:49]} 20... Kd7 {[%clk
0:01:36.2]} 21. Bc1 {[%clk 0:01:28.7]} 21... Qb6 {[%clk 0:01:16.5]} 22. a3
{[%clk 0:00:58.7]} 22... Nxa3 {[%clk 0:01:05.9]} 23. bxa3 {[%clk 0:00:59.6]}
23... Rxc3 {[%clk 0:01:05.6]} 24. Bb2 {[%clk 0:00:55.4]} 24... Nc2+ {[%clk
0:01:05.1]} 0-1

[Event "Late-Titled-Tuesday-Blitz-March-26-2024"]
[Site "Chess.com"]
[Date "2024.03.26"]
[Round "3"]
[White "Vladimir_Zakhartsov"]
[Black "jstopa4"]
[Result "1-0"]
[WhiteElo "2990"]
[BlackElo "2740"]
[TimeControl "180+1"]
[EndTime "14:27:49 PDT"]
[Termination "Vladimir_Zakhartsov won by resignation"]

1. d4 {[%clk 0:02:58.7]} 1... Nf6 {[%clk 0:02:53.8]} 2. c4 {[%clk 0:02:58.9]}
2... g6 {[%clk 0:02:52.1]} 3. Nc3 {[%clk 0:02:58.7]} 3... d5 {[%clk 0:02:52.5]}
4. cxd5 {[%clk 0:02:56.3]} 4... Nxd5 {[%clk 0:02:52.8]} 5. e4 {[%clk 0:02:57.1]}
5... Nxc3 {[%clk 0:02:53.2]} 6. bxc3 {[%clk 0:02:58]} 6... Bg7 {[%clk
0:02:53.6]} 7. Bb5+ {[%clk 0:02:55.7]} 7... Nd7 {[%clk 0:02:51.1]} 8. Nf3 {[%clk
0:02:52.6]} 8... O-O {[%clk 0:02:48.7]} 9. O-O {[%clk 0:02:50.7]} 9... a6 {[%clk
0:02:40.2]} 10. Be2 {[%clk 0:02:50.1]} 10... c5 {[%clk 0:02:40.4]} 11. Be3
{[%clk 0:02:47.9]} 11... Qa5 {[%clk 0:02:35.4]} 12. Rc1 {[%clk 0:02:42.8]} 12...
Rd8 {[%clk 0:02:21]} 13. Qb3 {[%clk 0:02:38]} 13... e6 {[%clk 0:02:12]} 14. Rfd1
{[%clk 0:02:27.1]} 14... b5 {[%clk 0:02:04.6]} 15. dxc5 {[%clk 0:02:22.7]} 15...
Bb7 {[%clk 0:02:03]} 16. Bg5 {[%clk 0:02:05.6]} 16... Bf6 {[%clk 0:01:34.7]} 17.
Rxd7 {[%clk 0:01:45.3]} 17... Bxg5 {[%clk 0:01:32.2]} 18. Rxf7 {[%clk
0:01:45.4]} 18... Bxc1 {[%clk 0:00:53.4]} 19. Qxe6 {[%clk 0:01:31.6]} 19... Qxc3
{[%clk 0:00:51.6]} 20. Rxb7+ {[%clk 0:01:08.6]} 20... Kh8 {[%clk 0:00:51.2]} 21.
Qe7 {[%clk 0:01:02.7]} 1-0

[Event "Late-Titled-Tuesday-Blitz-March-26-2024"]
[Site "Chess.com"]
[Date "2024.03.26"]
[Round "3"]
[White "Sanyura"]
[Black "BebeBonito2022"]
[Result "1-0"]
[WhiteElo "2578"]
[BlackElo "2295"]
[TimeControl "180+1"]
[EndTime "14:27:54 PDT"]
[Termination "Sanyura won by resignation"]

1. Nf3 {[%clk 0:02:44.2]} 1... Nc6 {[%clk 0:02:59.6]} 2. g3 {[%clk 0:02:44]}
2... e5 {[%clk 0:02:59.2]} 3. d3 {[%clk 0:02:44.6]} 3... d5 {[%clk 0:02:59.2]}
4. Nbd2 {[%clk 0:02:45.2]} 4... Be6 {[%clk 0:02:56.9]} 5. e4 {[%clk 0:02:44.2]}
5... d4 {[%clk 0:02:54.5]} 6. a3 {[%clk 0:02:43.5]} 6... f6 {[%clk 0:02:53.2]}
7. b4 {[%clk 0:02:44]} 7... Bd6 {[%clk 0:02:51.3]} 8. Nc4 {[%clk 0:02:43.9]}
8... Nge7 {[%clk 0:02:42.4]} 9. b5 {[%clk 0:02:43]} 9... Nb8 {[%clk 0:02:41.4]}
10. Nxd6+ {[%clk 0:02:40.5]} 10... cxd6 {[%clk 0:02:22.9]} 11. Bd2 {[%clk
0:02:35.3]} 11... Qb6 {[%clk 0:02:12.4]} 12. a4 {[%clk 0:02:34.7]} 12... Nd7
{[%clk 0:02:11.1]} 13. Bg2 {[%clk 0:02:33.3]} 13... O-O {[%clk 0:02:02.8]} 14.
O-O {[%clk 0:02:33.4]} 14... Rfc8 {[%clk 0:02:02.1]} 15. Nh4 {[%clk 0:02:33.5]}
15... a6 {[%clk 0:01:58.9]} 16. bxa6 {[%clk 0:02:31.9]} 16... Rxa6 {[%clk
0:01:51.9]} 17. g4 {[%clk 0:02:31.6]} 17... Qc6 {[%clk 0:01:42]} 18. Rc1 {[%clk
0:02:31.2]} 18... Rxa4 {[%clk 0:01:41.1]} 19. g5 {[%clk 0:02:31.7]} 19... Ra2
{[%clk 0:01:40]} 20. gxf6 {[%clk 0:02:31.8]} 20... Nxf6 {[%clk 0:01:36.8]} 21.
Bg5 {[%clk 0:02:20.9]} 21... Rxc2 {[%clk 0:01:32.7]} 22. Rxc2 {[%clk 0:02:21.8]}
22... Qxc2 {[%clk 0:01:32.6]} 23. Qf3 {[%clk 0:02:21.8]} 23... Rf8 {[%clk
0:01:23.1]} 24. Bh3 {[%clk 0:02:14.4]} 24... Qb3 {[%clk 0:00:53]} 25. Kh1 {[%clk
0:01:38.6]} 25... d5 {[%clk 0:00:16.9]} 26. Bxe6+ {[%clk 0:01:32.3]} 1-0

[Event "Late-Titled-Tuesday-Blitz-March-26-2024"]
[Site "Chess.com"]
[Date "2024.03.26"]
[Round "3"]
[White "sorch29"]
[Black "djano"]
[Result "0-1"]
[WhiteElo "2449"]
[BlackElo "2673"]
[TimeControl "180+1"]
[EndTime "14:27:56 PDT"]
[Termination "djano won on time"]

1. Nf3 {[%clk 0:03:00.9]} 1... c5 {[%clk 0:02:59.9]} 2. c4 {[%clk 0:02:57.6]}
2... g6 {[%clk 0:03:00.2]} 3. Nc3 {[%clk 0:02:58.1]} 3... Bg7 {[%clk 0:03:00]}
4. g3 {[%clk 0:02:56]} 4... Nc6 {[%clk 0:03:00.1]} 5. Bg2 {[%clk 0:02:55.7]}
5... Nf6 {[%clk 0:03:00.1]} 6. O-O {[%clk 0:02:55.1]} 6... O-O {[%clk
0:02:59.5]} 7. d4 {[%clk 0:02:54.9]} 7... cxd4 {[%clk 0:02:58.7]} 8. Nxd4 {[%clk
0:02:55.8]} 8... Qa5 {[%clk 0:02:59]} 9. e3 {[%clk 0:02:11.7]} 9... d6 {[%clk
0:02:49.5]} 10. Nxc6 {[%clk 0:02:10.7]} 10... bxc6 {[%clk 0:02:50.4]} 11. Bxc6
{[%clk 0:02:11.1]} 11... Rb8 {[%clk 0:02:47.5]} 12. Bg2 {[%clk 0:02:03.3]} 12...
Ba6 {[%clk 0:02:44.9]} 13. Nb5 {[%clk 0:01:51.7]} 13... Bxb5 {[%clk 0:02:36.5]}
14. cxb5 {[%clk 0:01:52.6]} 14... Qxb5 {[%clk 0:02:37.4]} 15. Rb1 {[%clk
0:01:41]} 15... Nd7 {[%clk 0:02:29.8]} 16. b3 {[%clk 0:01:32.2]} 16... Qa6
{[%clk 0:02:21.5]} 17. a4 {[%clk 0:00:51.6]} 17... Nc5 {[%clk 0:02:21.4]} 18.
Ba3 {[%clk 0:00:21.8]} 18... Rfc8 {[%clk 0:02:11.7]} 19. Bd5 {[%clk 0:00:21.6]}
19... e6 {[%clk 0:02:02.2]} 20. Bc4 {[%clk 0:00:21.9]} 20... Qb6 {[%clk
0:02:01.5]} 21. Qe2 {[%clk 0:00:14.4]} 21... Ne4 {[%clk 0:01:56.5]} 22. Qd3
{[%clk 0:00:08.3]} 22... d5 {[%clk 0:01:55.1]} 23. Ba6 {[%clk 0:00:04.1]} 23...
Rc3 {[%clk 0:01:54.6]} 24. Qb5 {[%clk 0:00:02.8]} 24... Nd2 {[%clk 0:01:48.9]}
25. Qxb6 {[%clk 0:00:01.4]} 25... Rxb6 {[%clk 0:01:49.8]} 26. Bb5 {[%clk
0:00:01.9]} 26... Nxf1 {[%clk 0:01:44.8]} 0-1

[Event "Late-Titled-Tuesday-Blitz-March-26-2024"]
[Site "Chess.com"]
[Date "2024.03.26"]
[Round "3"]
[White "David_ATM"]
[Black "ozates"]
[Result "1-0"]
[WhiteElo "2387"]
[BlackElo "2574"]
[TimeControl "180+1"]
[EndTime "14:27:56 PDT"]
[Termination "David_ATM won by resignation"]

1. e4 {[%clk 0:03:00.9]} 1... c5 {[%clk 0:02:57.5]} 2. c3 {[%clk 0:03:01.1]}
2... d5 {[%clk 0:02:57.1]} 3. exd5 {[%clk 0:03:02]} 3... Nf6 {[%clk 0:02:57.7]}
4. d4 {[%clk 0:03:02.9]} 4... cxd4 {[%clk 0:02:57.8]} 5. Nf3 {[%clk 0:02:59.2]}
5... Nxd5 {[%clk 0:02:53.4]} 6. Nxd4 {[%clk 0:02:58.1]} 6... g6 {[%clk
0:02:51.7]} 7. Bb5+ {[%clk 0:02:56.6]} 7... Bd7 {[%clk 0:02:51.4]} 8. Bxd7+
{[%clk 0:02:55.3]} 8... Qxd7 {[%clk 0:02:51.5]} 9. O-O {[%clk 0:02:55.1]} 9...
Bg7 {[%clk 0:02:52.2]} 10. Na3 {[%clk 0:02:45]} 10... O-O {[%clk 0:02:52.4]} 11.
Re1 {[%clk 0:02:45.1]} 11... e6 {[%clk 0:02:51.2]} 12. Bg5 {[%clk 0:02:41.9]}
12... Nc6 {[%clk 0:02:50.4]} 13. Nxc6 {[%clk 0:02:41.2]} 13... Qxc6 {[%clk
0:02:50.4]} 14. Nc2 {[%clk 0:02:37.4]} 14... h6 {[%clk 0:02:49.1]} 15. Bd2
{[%clk 0:02:14.2]} 15... Rfd8 {[%clk 0:02:47.7]} 16. Qe2 {[%clk 0:02:13.9]}
16... Qb6 {[%clk 0:02:41]} 17. Rab1 {[%clk 0:02:11.2]} 17... Rac8 {[%clk
0:02:40.7]} 18. Red1 {[%clk 0:02:00.3]} 18... Qa5 {[%clk 0:02:34.9]} 19. c4
{[%clk 0:01:53.6]} 19... Qxa2 {[%clk 0:02:28.4]} 20. cxd5 {[%clk 0:01:29.5]}
20... Rxc2 {[%clk 0:02:27.2]} 21. dxe6 {[%clk 0:01:30.1]} 21... Qxe6 {[%clk
0:02:26]} 22. Qxe6 {[%clk 0:01:24.3]} 22... fxe6 {[%clk 0:02:26.9]} 23. Be3
{[%clk 0:01:16.6]} 23... Rxd1+ {[%clk 0:02:25.6]} 24. Rxd1 {[%clk 0:01:17.5]}
24... Rxb2 {[%clk 0:02:08.4]} 25. Bxa7 {[%clk 0:01:15.4]} 25... Be5 {[%clk
0:02:03.1]} 26. g3 {[%clk 0:01:11.1]} 26... b5 {[%clk 0:02:02.6]} 27. Re1 {[%clk
0:01:04.9]} 27... Bf6 {[%clk 0:01:48.3]} 28. Rxe6 {[%clk 0:01:03.7]} 28... Kg7
{[%clk 0:01:45.1]} 29. Kg2 {[%clk 0:01:03.1]} 29... Ra2 {[%clk 0:01:40.3]} 30.
Be3 {[%clk 0:01:01.2]} 30... b4 {[%clk 0:01:39.4]} 31. Bxh6+ {[%clk 0:00:54.1]}
31... Kf7 {[%clk 0:01:39.5]} 32. Rb6 {[%clk 0:00:32.5]} 32... Rb2 {[%clk
0:01:35]} 33. Be3 {[%clk 0:00:29.9]} 33... b3 {[%clk 0:01:35.2]} 34. Rxf6+
{[%clk 0:00:29.6]} 1-0

[Event "Late-Titled-Tuesday-Blitz-March-26-2024"]
[Site "Chess.com"]
[Date "2024.03.26"]
[Round "3"]
[White "MaiqMaster"]
[Black "Blackwhite017"]
[Result "1-0"]
[WhiteElo "2385"]
[BlackElo "2085"]
[TimeControl "180+1"]
[EndTime "14:28:02 PDT"]
[Termination "MaiqMaster won by resignation"]

1. e4 {[%clk 0:03:00.9]} 1... c5 {[%clk 0:02:59.8]} 2. Nc3 {[%clk 0:02:58.6]}
2... Nc6 {[%clk 0:02:59.7]} 3. Bb5 {[%clk 0:02:58.7]} 3... Nd4 {[%clk
0:02:58.8]} 4. Nf3 {[%clk 0:02:58.9]} 4... Nxb5 {[%clk 0:02:58.3]} 5. Nxb5
{[%clk 0:02:59.8]} 5... d5 {[%clk 0:02:55.7]} 6. exd5 {[%clk 0:02:55.4]} 6... a6
{[%clk 0:02:55.6]} 7. Nc3 {[%clk 0:02:54.5]} 7... Nf6 {[%clk 0:02:55.5]} 8. d4
{[%clk 0:02:48]} 8... Nxd5 {[%clk 0:02:43.5]} 9. O-O {[%clk 0:02:40.8]} 9...
Nxc3 {[%clk 0:02:38.9]} 10. bxc3 {[%clk 0:02:40.7]} 10... Bg4 {[%clk 0:02:30.5]}
11. h3 {[%clk 0:02:39.2]} 11... Bh5 {[%clk 0:02:28.8]} 12. Re1 {[%clk
0:02:37.6]} 12... e6 {[%clk 0:02:26.4]} 13. g4 {[%clk 0:02:28.4]} 13... Bg6
{[%clk 0:02:25.4]} 14. d5 {[%clk 0:02:26.2]} 14... Be7 {[%clk 0:02:16.3]} 15.
dxe6 {[%clk 0:02:23.3]} 15... Qxd1 {[%clk 0:02:12]} 16. exf7+ {[%clk 0:02:23.3]}
16... Kxf7 {[%clk 0:02:08.3]} 17. Rxd1 {[%clk 0:02:24.2]} 17... Bxc2 {[%clk
0:02:06.5]} 18. Rd7 {[%clk 0:02:20.7]} 18... Ke6 {[%clk 0:02:02]} 19. Rxb7
{[%clk 0:02:18.3]} 19... Be4 {[%clk 0:02:00.9]} 20. Rb6+ {[%clk 0:02:13.4]}
20... Kd5 {[%clk 0:01:54.7]} 21. Nd2 {[%clk 0:02:03]} 21... Bd3 {[%clk
0:01:41.9]} 22. Nf1 {[%clk 0:01:35.1]} 22... Bf6 {[%clk 0:01:11.8]} 23. Ne3+
{[%clk 0:01:31.9]} 23... Ke4 {[%clk 0:01:01.6]} 24. Re6+ {[%clk 0:01:30.2]}
24... Kf3 {[%clk 0:00:59.8]} 25. Ng2 {[%clk 0:01:14.4]} 1-0

[Event "Late-Titled-Tuesday-Blitz-March-26-2024"]
[Site "Chess.com"]
[Date "2024.03.26"]
[Round "3"]
[White "kacperkarwowski"]
[Black "GoltsevDmitry2000"]
[Result "0-1"]
[WhiteElo "2500"]
[BlackElo "2795"]
[TimeControl "180+1"]
[EndTime "14:28:05 PDT"]
[Termination "GoltsevDmitry2000 won by resignation"]

1. d4 {[%clk 0:03:00.9]} 1... e6 {[%clk 0:03:00]} 2. c4 {[%clk 0:02:59.9]} 2...
d5 {[%clk 0:03:00.2]} 3. Nc3 {[%clk 0:03:00.5]} 3... dxc4 {[%clk 0:03:00.2]} 4.
e3 {[%clk 0:02:58.6]} 4... c5 {[%clk 0:03:00.6]} 5. Nf3 {[%clk 0:02:58.4]} 5...
Nc6 {[%clk 0:03:00.6]} 6. Bxc4 {[%clk 0:02:57.4]} 6... Nf6 {[%clk 0:03:00.8]} 7.
O-O {[%clk 0:02:57]} 7... cxd4 {[%clk 0:03:01.2]} 8. exd4 {[%clk 0:02:57.2]}
8... Bd6 {[%clk 0:03:01.7]} 9. Bg5 {[%clk 0:02:56.9]} 9... h6 {[%clk 0:03:01.9]}
10. Bh4 {[%clk 0:02:55.2]} 10... O-O {[%clk 0:03:01.5]} 11. Rc1 {[%clk
0:02:52.7]} 11... a6 {[%clk 0:03:01.1]} 12. d5 {[%clk 0:02:51.7]} 12... exd5
{[%clk 0:03:00.4]} 13. Nxd5 {[%clk 0:02:52.6]} 13... Ne5 {[%clk 0:02:48.2]} 14.
Nxf6+ {[%clk 0:02:48.2]} 14... gxf6 {[%clk 0:02:48.4]} 15. Nxe5 {[%clk
0:02:45.3]} 15... Bxe5 {[%clk 0:02:49.3]} 16. Qh5 {[%clk 0:02:45.8]} 16... Kg7
{[%clk 0:02:46.4]} 17. Rfd1 {[%clk 0:02:34.1]} 17... Qa5 {[%clk 0:02:46.1]} 18.
Rd5 {[%clk 0:02:02.8]} 18... Qb6 {[%clk 0:02:40.9]} 19. Rxe5 {[%clk 0:01:41.8]}
19... fxe5 {[%clk 0:02:40.2]} 20. Qxe5+ {[%clk 0:01:42.7]} 20... Kg8 {[%clk
0:02:34.6]} 21. Rc3 {[%clk 0:01:02]} 21... Qg6 {[%clk 0:02:00]} 22. Rg3 {[%clk
0:00:59.8]} 22... Bg4 {[%clk 0:02:00.2]} 23. h3 {[%clk 0:00:54.6]} 23... Rfe8
{[%clk 0:01:58.5]} 24. Rxg4 {[%clk 0:00:50.4]} 24... Qxg4 {[%clk 0:01:57.5]} 25.
Qxe8+ {[%clk 0:00:50]} 25... Rxe8 {[%clk 0:01:58.4]} 26. hxg4 {[%clk 0:00:50.8]}
26... Re4 {[%clk 0:01:56.3]} 27. Bd5 {[%clk 0:00:44.7]} 27... Rxg4 {[%clk
0:01:56.1]} 28. Bg3 {[%clk 0:00:45.2]} 28... Rb4 {[%clk 0:01:52.3]} 29. b3
{[%clk 0:00:45.6]} 29... b5 {[%clk 0:01:52.3]} 30. Be5 {[%clk 0:00:39.6]} 30...
Rg4 {[%clk 0:01:48.7]} 31. f4 {[%clk 0:00:38.2]} 31... Rg3 {[%clk 0:01:44.8]}
32. Kf2 {[%clk 0:00:34.7]} 32... Rd3 {[%clk 0:01:44.7]} 33. Ke2 {[%clk
0:00:34.7]} 33... Rxd5 {[%clk 0:01:44.7]} 34. Ke3 {[%clk 0:00:33.8]} 34... f5
{[%clk 0:01:44.2]} 35. a4 {[%clk 0:00:32.8]} 35... bxa4 {[%clk 0:01:44]} 36.
bxa4 {[%clk 0:00:33.7]} 36... Kf7 {[%clk 0:01:44.8]} 37. Bc7 {[%clk 0:00:32.9]}
37... Kg6 {[%clk 0:01:44.8]} 38. a5 {[%clk 0:00:32.6]} 38... Kh5 {[%clk
0:01:44.9]} 39. Kf3 {[%clk 0:00:33.2]} 39... Rd3+ {[%clk 0:01:44.7]} 40. Ke2
{[%clk 0:00:33.6]} 40... Rc3 {[%clk 0:01:44.7]} 41. Bb6 {[%clk 0:00:33.5]} 41...
Kg4 {[%clk 0:01:44.6]} 0-1

[Event "Late-Titled-Tuesday-Blitz-March-26-2024"]
[Site "Chess.com"]
[Date "2024.03.26"]
[Round "3"]
[White "Christian_Jordan"]
[Black "DACF2905"]
[Result "0-1"]
[WhiteElo "2044"]
[BlackElo "2381"]
[TimeControl "180+1"]
[EndTime "14:28:08 PDT"]
[Termination "DACF2905 won on time"]

1. e4 {[%clk 0:03:00.9]} 1... e5 {[%clk 0:02:58.1]} 2. f4 {[%clk 0:02:59.4]}
2... d5 {[%clk 0:02:56.8]} 3. exd5 {[%clk 0:02:52.8]} 3... e4 {[%clk 0:02:56.9]}
4. d3 {[%clk 0:02:51.5]} 4... exd3 {[%clk 0:02:56.4]} 5. Bxd3 {[%clk 0:02:47.2]}
5... Qxd5 {[%clk 0:02:55.9]} 6. Nf3 {[%clk 0:02:46.3]} 6... Nf6 {[%clk
0:02:55.8]} 7. Nc3 {[%clk 0:02:35.1]} 7... Bb4 {[%clk 0:02:52.7]} 8. Qe2+ {[%clk
0:02:27.3]} 8... Qe6 {[%clk 0:02:44.8]} 9. Bd2 {[%clk 0:02:20.8]} 9... O-O
{[%clk 0:02:42.9]} 10. Qxe6 {[%clk 0:02:13.7]} 10... Bxe6 {[%clk 0:02:42.6]} 11.
h3 {[%clk 0:02:06]} 11... Nc6 {[%clk 0:02:41.3]} 12. O-O-O {[%clk 0:02:01.3]}
12... Nd5 {[%clk 0:02:33.5]} 13. f5 {[%clk 0:01:53]} 13... Bxc3 {[%clk
0:02:26.7]} 14. fxe6 {[%clk 0:01:09.8]} 14... Bxd2+ {[%clk 0:02:26.2]} 15. Rxd2
{[%clk 0:00:51.3]} 15... fxe6 {[%clk 0:02:25.9]} 16. Re1 {[%clk 0:00:48.8]}
16... Nf4 {[%clk 0:02:24.4]} 17. Bc4 {[%clk 0:00:44.4]} 17... Rae8 {[%clk
0:02:22.4]} 18. Ng5 {[%clk 0:00:35.4]} 18... Nd8 {[%clk 0:02:21.9]} 19. g3
{[%clk 0:00:30.5]} 19... h6 {[%clk 0:02:21.7]} 20. gxf4 {[%clk 0:00:27.8]} 20...
hxg5 {[%clk 0:02:21.6]} 21. fxg5 {[%clk 0:00:27.6]} 21... Kh7 {[%clk 0:02:20.7]}
22. Bd3+ {[%clk 0:00:20.5]} 22... g6 {[%clk 0:02:20.5]} 23. h4 {[%clk
0:00:18.5]} 23... Kg7 {[%clk 0:02:20.6]} 24. h5 {[%clk 0:00:15.7]} 24... gxh5
{[%clk 0:02:20.6]} 25. Rh1 {[%clk 0:00:15.7]} 25... Rh8 {[%clk 0:02:20.2]} 26.
Rdh2 {[%clk 0:00:13.1]} 26... Nf7 {[%clk 0:02:15.2]} 27. Rxh5 {[%clk 0:00:12.7]}
27... Rxh5 {[%clk 0:02:14.3]} 28. Rxh5 {[%clk 0:00:12.8]} 28... Rh8 {[%clk
0:02:14.2]} 29. Rxh8 {[%clk 0:00:11.7]} 29... Kxh8 {[%clk 0:02:14.6]} 30. g6
{[%clk 0:00:11.5]} 30... Ne5 {[%clk 0:02:14.8]} 31. Be4 {[%clk 0:00:10.6]} 31...
c6 {[%clk 0:02:15.2]} 32. Kd2 {[%clk 0:00:09.6]} 32... Kg7 {[%clk 0:02:15.2]}
33. Ke3 {[%clk 0:00:08.1]} 33... Nxg6 {[%clk 0:02:15.4]} 34. Kd4 {[%clk
0:00:05.8]} 34... Kf6 {[%clk 0:02:13.4]} 35. Kc5 {[%clk 0:00:04.7]} 35... Ne5
{[%clk 0:02:07.5]} 36. Kd6 {[%clk 0:00:03.6]} 36... Nc4+ {[%clk 0:02:07.6]} 37.
Kc7 {[%clk 0:00:02.5]} 37... Nxb2 {[%clk 0:02:07.8]} 38. Kxb7 {[%clk 0:00:02.4]}
38... c5 {[%clk 0:02:04.4]} 39. Kxa7 {[%clk 0:00:02.2]} 39... Ke5 {[%clk
0:02:04.4]} 40. Bc6 {[%clk 0:00:01.2]} 40... Kd4 {[%clk 0:02:04.3]} 0-1

[Event "Late-Titled-Tuesday-Blitz-March-26-2024"]
[Site "Chess.com"]
[Date "2024.03.26"]
[Round "3"]
[White "yujiarun18"]
[Black "Supelyel"]
[Result "0-1"]
[WhiteElo "2121"]
[BlackElo "2408"]
[TimeControl "180+1"]
[EndTime "14:28:10 PDT"]
[Termination "Supelyel won by checkmate"]

1. e4 {[%clk 0:02:55.9]} 1... c5 {[%clk 0:02:57.1]} 2. Nf3 {[%clk 0:02:55.1]}
2... d6 {[%clk 0:02:56.9]} 3. d4 {[%clk 0:02:55.7]} 3... cxd4 {[%clk 0:02:56.9]}
4. Nxd4 {[%clk 0:02:56.5]} 4... Nf6 {[%clk 0:02:57.3]} 5. Nc3 {[%clk 0:02:56]}
5... Nc6 {[%clk 0:02:57.4]} 6. Bg5 {[%clk 0:02:53.8]} 6... Bd7 {[%clk
0:02:56.6]} 7. Be2 {[%clk 0:02:48.1]} 7... h6 {[%clk 0:02:54]} 8. Bxf6 {[%clk
0:02:46.7]} 8... gxf6 {[%clk 0:02:53.8]} 9. O-O {[%clk 0:02:45.5]} 9... e6
{[%clk 0:02:52.7]} 10. Ndb5 {[%clk 0:02:43.2]} 10... Qb8 {[%clk 0:02:52]} 11.
Qd2 {[%clk 0:02:37.9]} 11... a6 {[%clk 0:02:51.3]} 12. Na3 {[%clk 0:02:36.3]}
12... b5 {[%clk 0:02:50.9]} 13. Nd1 {[%clk 0:02:31.6]} 13... h5 {[%clk 0:02:48]}
14. Ne3 {[%clk 0:02:31.2]} 14... Qb7 {[%clk 0:02:41.1]} 15. Rad1 {[%clk
0:02:28.2]} 15... Be7 {[%clk 0:02:40.7]} 16. c4 {[%clk 0:02:24.4]} 16... b4
{[%clk 0:02:33.7]} 17. Nac2 {[%clk 0:02:23.1]} 17... a5 {[%clk 0:02:18.3]} 18.
b3 {[%clk 0:02:20.4]} 18... h4 {[%clk 0:01:46.2]} 19. f4 {[%clk 0:02:17.7]}
19... Qb6 {[%clk 0:01:42.5]} 20. Bf3 {[%clk 0:02:13.7]} 20... Rc8 {[%clk
0:01:42.1]} 21. Kh1 {[%clk 0:02:13.7]} 21... Nd8 {[%clk 0:01:40]} 22. Ng4 {[%clk
0:02:06.6]} 22... Qc5 {[%clk 0:01:31.9]} 23. e5 {[%clk 0:02:04.9]} 23... f5
{[%clk 0:00:50.8]} 24. exd6 {[%clk 0:02:04.6]} 24... fxg4 {[%clk 0:00:42.6]} 25.
dxe7 {[%clk 0:02:03.2]} 25... Qxe7 {[%clk 0:00:39.6]} 26. Bxg4 {[%clk
0:02:03.4]} 26... f5 {[%clk 0:00:27.6]} 27. Bf3 {[%clk 0:02:02.5]} 27... Bc6
{[%clk 0:00:27.7]} 28. Nd4 {[%clk 0:02:00.6]} 28... Bxf3 {[%clk 0:00:27]} 29.
Nxf3 {[%clk 0:02:01.3]} 29... Nc6 {[%clk 0:00:25.5]} 30. Rfe1 {[%clk 0:01:59.7]}
30... Kf8 {[%clk 0:00:23]} 31. Qe2 {[%clk 0:01:53.6]} 31... Rh6 {[%clk
0:00:21.1]} 32. Ng5 {[%clk 0:01:52.9]} 32... Re8 {[%clk 0:00:19.4]} 33. Qf3
{[%clk 0:01:50.3]} 33... e5 {[%clk 0:00:17.9]} 34. fxe5 {[%clk 0:01:48.1]} 34...
Qxg5 {[%clk 0:00:18.1]} 35. Qd5 {[%clk 0:01:37]} 35... Ne7 {[%clk 0:00:17.9]}
36. e6 {[%clk 0:01:34.9]} 36... Nxd5 {[%clk 0:00:17.3]} 37. cxd5 {[%clk
0:01:34.3]} 37... Rg6 {[%clk 0:00:18]} 38. d6 {[%clk 0:01:34.8]} 38... Qxg2#
{[%clk 0:00:18]} 0-1